fUSD/lending_fUSD_20240224
["ID","MTS","AMOUNT","RATE_DAILY","PERIOD"]
[315050025,1708781213210,-150.0,0.00027644,7]
[315050026,1708781213233,-1000.0,0.00027671,7]
[315050027,1708781213265,-500.0,0.00027671,14]
[315050028,1708781213341,-150.0,0.0002789,7]
[315050029,1708781213362,-150.0,0.0002789,7]
[315050030,1708781213384,-1000.0,0.00027945,7]
[315050031,1708781213415,-500.0,0.00027945,14]
[315050032,1708781213438,-300.0,0.00027945,5]
[315050033,1708781213925,152.295536,0.00026339,7]
[315050034,1708781214081,152.295536,0.00026672,7]
[315050035,1708781214272,3338.65,0.00027397,10]
[315050036,1708781214515,152.295536,0.00026709,7]
[315050037,1708781214567,152.295536,0.00026715,7]
[315050038,1708781214619,152.295536,0.00026798,7]
[315050039,1708781214664,152.295536,0.00027,7]
[315050040,1708781214769,152.295536,0.00027378,7]
[315050041,1708781214896,152.295536,0.00027397,7]
[315050042,1708781237362,2782.21,0.00027397,10]
[315050043,1708781247917,2318.5,0.00027397,10]
[315050044,1708781269246,1000.0,0.00027397,7]
[315050045,1708781269663,1000.0,0.00027671,7]
[315050046,1708781269915,1000.0,0.00027945,7]
[315050047,1708781286851,1932.09,0.00027397,10]
[315050048,1708781301958,1610.07,0.00027397,10]
[315050049,1708781305631,588.28599778,0.00027397,7]
[315050050,1708781325615,588.28599778,0.00027397,7]
[315050051,1708781330966,1341.73,0.00027397,10]
[315050052,1708781343617,588.28599778,0.00027397,7]
[315050053,1708781359719,1118.11,0.00027397,10]
[315050054,1708781361890,522.09235489,0.00027397,7]
[315050055,1708781370107,931.75,0.00027397,10]
[315050056,1708781384537,776.46,0.00027397,10]
[315050057,1708781398950,647.05,0.00027397,10]
[315050058,1708781413326,539.21,0.00027397,10]
[315050059,1708781424151,449.34,0.00027397,10]
[315050066,1708781431581,-465.67321954,0.00022816,2]
[315050067,1708781431727,-415.3476351,0.00022817,2]
[315050068,1708781431738,-765.12448514,0.0002282,2]
[315050069,1708781431748,-797.17151195,0.00022822,2]
[315050070,1708781431757,-366.68314827,0.00022824,2]
[315050071,1708781431769,-261.45585014,0.00022824,2]
[315050072,1708781431778,-184.62835549,0.00022827,2]
[315050073,1708781431787,-300.0,0.00023223,2]
[315050074,1708781431797,-287.0,0.00023223,2]
[315050075,1708781431806,-3548.64539882,0.00023224,2]
[315050076,1708781431817,-956.32578198,0.00023224,2]
[315050077,1708781431830,-550.0,0.00023224,2]
[315050078,1708781431841,-645.33911199,0.00023224,2]
[315050079,1708781431853,-1353.82723946,0.00023224,2]
[315050080,1708781431864,-830.57540162,0.00023224,2]
[315050082,1708781431901,-3551.74706613,0.00023224,2]
[315050084,1708781431910,-250.0,0.00023238,2]
[315050086,1708781431919,-2705.0,0.00023249,2]
[315050088,1708781431928,-160.0623525,0.00023282,2]
[315050090,1708781431937,-660.88,0.00023381,2]
[315050092,1708781431946,-499.99,0.00023381,2]
[315050094,1708781431955,-196.42,0.00023382,2]
[315050096,1708781431964,-5633.49,0.00023398,2]
[315050098,1708781431973,-2000.0,0.00023433,2]
[315050100,1708781431982,-155.0,0.0002348,2]
[315050102,1708781431992,-179.0,0.00023483,2]
[315050104,1708781432002,-176.54,0.00023597,2]
[315050106,1708781432011,-163.57,0.00023601,2]
[315050108,1708781432021,-339.12,0.00023621,2]
[315050110,1708781432030,-177.78,0.00023718,2]
[315050112,1708781432039,-375.76,0.00023727,2]
[315050114,1708781432048,-160.06235247,0.00023812,2]
[315050116,1708781432058,-212.8,0.000239,2]
[315050118,1708781432067,-150.54,0.00023948,2]
[315050120,1708781432076,-150.0,0.00023971,2]
[315050122,1708781432086,-155.53376744,0.00023971,2]
[315050124,1708781432096,-163.57,0.00024011,2]
[315050126,1708781432105,-239.0,0.00024055,2]
[315050128,1708781432115,-150.54,0.00024089,2]
[315050130,1708781432124,-164.1,0.00024183,2]
[315050133,1708781432133,-150.54,0.00024229,2]
[315050134,1708781432143,-177.78,0.00024266,2]
[315050137,1708781432152,-160.06235247,0.00024342,2]
[315050138,1708781432162,-150.54,0.0002437,2]
[315050141,1708781432172,-3360.58,0.00024384,2]
[315050143,1708781432180,-157.45,0.00024384,2]
[315050144,1708781432189,-163.57,0.00024421,2]
[315050146,1708781432198,-500.0,0.000245,2]
[315050148,1708781432207,-150.54,0.00024511,2]
[315050150,1708781432216,-150.0,0.00024519,2]
[315050152,1708781432225,-5633.49,0.00024568,2]
[315050154,1708781432234,-1000.0,0.000246,2]
[315050156,1708781432244,-1000.0,0.000246,3]
[315050159,1708781432253,-150.54,0.00024652,2]
[315050161,1708781432262,-250.0,0.00024658,2]
[315050162,1708781432271,-49949.42375899,0.00024677,2]
[315050241,1708781434802,374.45,0.00027397,10]
[315050249,1708781437431,-2234.09485337,0.00024677,2]
[315050250,1708781437476,-2978.06845158,0.00024677,2]
[315050251,1708781437489,-1205.1467572,0.00024677,2]
[315050252,1708781437507,-2491.37892,0.00024677,2]
[315050253,1708781437642,-1007.99999868,0.00024677,2]
[315050254,1708781437655,-49812.4084481,0.00024677,2]
[315050255,1708781437667,-833.06160686,0.00024677,2]
[315050256,1708781437679,-5165.89419258,0.00024677,2]
[315050257,1708781437691,-4824.90955406,0.00024677,2]
[315050258,1708781437738,-22759.92151387,0.00024677,2]
[315050259,1708781437750,-567.99743166,0.00024677,2]
[315050260,1708781437762,-2382.31519017,0.00024677,2]
[315050261,1708781437774,-284.51111494,0.00024677,2]
[315050265,1708781437798,-882.75490315,0.00024677,2]
[315050267,1708781437811,-504.21309168,0.00024677,2]
[315050268,1708781437823,-2560.09027824,0.00024677,2]
[315050269,1708781437836,-212488.49570122,0.00024677,2]
[315050270,1708781437888,-46.9232908,0.00024677,2]
[315050399,1708781440307,-1037.57000005,0.00024677,2]
[315050400,1708781440319,-1690.4613844,0.00024677,2]
[315050401,1708781440330,-265.693953,0.00024677,2]
[315050403,1708781441064,-48628.4202651,0.00024677,2]
[315050404,1708781444828,-2696.0,0.00024276,2]
[315050405,1708781444838,-150.0,0.00024482,2]
[315050406,1708781444849,-110.67165855,0.00024621,2]
[315050407,1708781444895,-39.32834145,0.00024621,2]
[315050408,1708781444905,-51149.54623844,0.00024677,2]
[315050409,1708781444917,-322.40594412,0.00024677,2]
[315050410,1708781445027,-541.89406802,0.00024677,2]
[315050411,1708781445093,-986.06827491,0.00024677,2]
[315050412,1708781445105,-356.58500165,0.00024677,2]
[315050422,1708781445650,-4269.89165399,0.00024677,2]
[315050423,1708781445662,-450.0,0.00024677,2]
[315050424,1708781445674,-483.87719183,0.00024677,2]
[315050425,1708781445697,-2028.52878983,0.00024677,2]
[315050426,1708781445735,-7169.21354812,0.00024677,2]
[315050432,1708781560084,373.3,0.00021971,2]
[315050433,1708781585872,1250.81590832,0.00027,14]
[315050435,1708781887673,151.0,0.00024972,7]
[315050436,1708781970830,-329.60556228,0.00022898,2]
[315050437,1708781970853,-213.11689176,0.00022996,2]
[315050438,1708781970875,-1212.77909687,0.00022997,2]
[315050439,1708781970896,-482.25955554,0.00022998,2]
[315050440,1708781970917,-465.67321954,0.00022999,2]
[315050441,1708781970938,-150.0,0.00022999,2]
[315050442,1708781970960,-300.0,0.00022999,2]
[315050443,1708781970981,-20000.0,0.00023,2]
[315050444,1708782042025,354.63,0.00021875,2]
[315050445,1708782256022,10575.0,0.0002901,120]
[315050448,1708782350498,-465.67321954,0.00023461,2]
[315050449,1708782350518,-177.78,0.00023462,2]
[315050450,1708782350537,-231.14,0.00023538,2]
[315050451,1708782350557,-1008.4955,0.00023611,2]
[315050452,1708782350577,-528.71,0.00023723,2]
[315050453,1708782350598,-163.57,0.00023744,2]
[315050454,1708782350621,-3380.09,0.00023814,2]
[315050455,1708782350642,-471.29,0.00023857,2]
[315050456,1708782350665,-165.09,0.00023918,2]
[315050457,1708782350685,-150.0,0.00023999,2]
[315050458,1708782350705,-858.16128046,0.00024,3]
[315050459,1708782547300,336.89,0.0002184,2]
[315050469,1708782631718,-465.67321954,0.00023351,2]
[315050470,1708782631728,-155.0,0.00023352,2]
[315050471,1708782631738,-1049.49088706,0.00023353,2]
[315050472,1708782631757,-300.0,0.00023361,2]
[315050473,1708782631768,-577.03,0.00023802,2]
[315050474,1708782631778,-145.83861999,0.00023855,2]
[315050475,1708782631791,-14.22373248,0.00023855,2]
[315050476,1708782631801,-1215.94924034,0.00023919,2]
[315050477,1708782631814,-1338.05075966,0.00023919,2]
[315050478,1708782631826,-1020.0,0.00023955,2]
[315050479,1708782631836,-150.0,0.00023999,2]
[315050480,1708782631847,-5833.23330917,0.00024,3]
[315050481,1708782631859,-1872.26493333,0.00024,3]
[315050482,1708782631880,-542.55139728,0.00024,3]
[315050483,1708782631946,-4164.51828404,0.00024,3]
[315050484,1708782631957,-1647.45574017,0.00024,3]
[315050485,1708782631969,-401.82437314,0.00024,3]
[315050488,1708782638235,-4679.99068241,0.00024,3]
[315050489,1708782638244,-2218.5,0.00024,2]
[315050490,1708782638255,-355.38,0.0002401,2]
[315050491,1708782638265,-336.89,0.00024104,2]
[315050492,1708782638275,-157.45,0.00024384,2]
[315050493,1708782638284,-2800.48,0.00024384,2]
[315050494,1708782638293,-499.99,0.00024384,2]
[315050495,1708782638303,-1453.0,0.00024462,2]
[315050496,1708782638313,-1373.0,0.00024462,2]
[315050497,1708782638322,-1870.0,0.00024462,2]
[315050498,1708782638332,-2696.0,0.00024462,2]
[315050499,1708782638341,-534.0,0.00024462,2]
[315050500,1708782638351,-1040.0,0.00024462,2]
[315050501,1708782638362,-694.03884263,0.00024462,2]
[315050502,1708782639878,-15.96115737,0.00024462,2]
[315050503,1708782639888,-167.432,0.00024462,2]
[315050504,1708782639897,-217.0,0.00024462,2]
[315050505,1708782639906,-170.54405852,0.00024462,2]
[315050506,1708782639918,-1783.45594148,0.00024462,2]
[315050507,1708782639928,-1231.0,0.00024462,2]
[315050508,1708782639937,-600.0,0.00024462,2]
[315050509,1708782639948,-1257.0,0.00024462,2]
[315050510,1708782639957,-277.0,0.00024462,2]
[315050511,1708782639967,-859.0,0.00024462,2]
[315050512,1708782639976,-1007.0,0.00024462,2]
[315050513,1708782639985,-240.0,0.00024462,2]
[315050514,1708782639995,-2905.0,0.00024462,2]
[315050515,1708782640004,-1138.0,0.00024462,2]
[315050516,1708782640014,-338.0,0.00024462,2]
[315050517,1708782640023,-302.0,0.00024462,2]
[315050518,1708782640033,-322.0,0.00024462,2]
[315050519,1708782640042,-150.0,0.00024462,2]
[315050520,1708782640051,-390.0,0.00024462,2]
[315050521,1708782640061,-7437.0,0.00024462,2]
[315050522,1708782640070,-27367.93645383,0.00024462,2]
[315050526,1708782640200,-336.02735774,0.00024462,2]
[315050528,1708782640216,-297.8,0.00024462,2]
[315050536,1708782640278,-1405.42318843,0.00024462,2]
[315050538,1708782640287,-2084.87525855,0.00024462,2]
[315050542,1708782640314,-2620.39941419,0.00024462,2]
[315050547,1708782640352,-9741.22555128,0.00024462,2]
[315050551,1708782640380,-5451.49977598,0.00024462,2]
[315050553,1708782640389,-2935.0,0.00024462,2]
[315050555,1708782640399,-5905.5741939,0.00024462,2]
[315050558,1708782640412,-888.26021703,0.00024462,2]
[315050560,1708782640426,-463.19576526,0.00024462,2]
[315050629,1708782641130,-927.96982381,0.00024462,2]
[315050630,1708782641139,-150.0,0.00024462,2]
[315050631,1708782641149,-4639.86586951,0.00024462,2]
[315050632,1708782641160,-1004.13413049,0.00024462,2]
[315050633,1708782641169,-150.0,0.00024462,2]
[315050634,1708782641177,-2295.0,0.00024462,2]
[315050636,1708782641186,-250.0,0.00024658,2]
[315050655,1708782641348,-82850.07633516,0.00024677,2]
[315050659,1708782641381,-1667.94544195,0.00024677,2]
[315050661,1708782641393,-54478.20330522,0.00024677,2]
[315050664,1708782641402,-1321.94381811,0.00024679,2]
[315050666,1708782641411,-46481.70920847,0.00024685,2]
[315050835,1708782642934,-6074.69000522,0.00024685,2]
[315050837,1708782642945,-2535.2006702,0.00024685,2]
[315050842,1708782642991,-1480.57941657,0.00024685,2]
[315050844,1708782643003,-17632.69348161,0.00024685,2]
[315050854,1708782645742,-1483.64999451,0.00024685,2]
[315050855,1708782645801,-309.55822901,0.00024685,2]
[315050856,1708782645813,-3684.3744062,0.00024685,2]
[315050857,1708782645913,-550.51694946,0.00024685,2]
[315050858,1708782645973,-374.48827101,0.00024685,2]
[315050860,1708782670284,162513.57953461,0.00023,2]
[315050861,1708782670307,207205.51368183,0.00023,2]
[315050862,1708782702563,124286.42199218,0.000229,2]
[315050863,1708782787616,151.0,0.00024972,7]
[315050864,1708782853896,509.0,0.00027,30]
[315050865,1708783086934,175.78,0.00018781,2]
[315050866,1708783088316,338.15,0.00021559,2]
[315050876,1708783552188,321.24,0.00020784,2]
[315050877,1708783559476,175.78,0.00018128,2]
[315050878,1708783622491,288.0,0.000224,2]
[315050879,1708783686286,151.0,0.00024889,7]
[315050887,1708783831870,-515.95579478,0.00022581,2]
[315050888,1708783831879,-155.0,0.00022582,2]
[315050889,1708783831889,-465.67321954,0.00022582,2]
[315050890,1708783831898,-1664.01358971,0.000226,2]
[315050891,1708783831907,-206.0,0.00022628,2]
[315050892,1708783831917,-199.99998,0.00022628,2]
[315050893,1708783831926,-269.05,0.00022658,2]
[315050894,1708783831936,-154.27822877,0.000227,2]
[315050895,1708783831945,-103.01090316,0.00022744,2]
[315050896,1708783831958,-358.61909684,0.00022744,2]
[315050897,1708783831967,-150.0,0.00022799,2]
[315050898,1708783831979,-500.0,0.000228,2]
[315050899,1708783831989,-770.5056,0.000228,2]
[315050900,1708783832000,-952.5900601,0.000228,2]
[315050901,1708783832012,-1502.4402399,0.000228,2]
[315050902,1708783832021,-11473.1346,0.000228,2]
[315050903,1708783832031,-4533.3901,0.000228,2]
[315050904,1708783832041,-3463.94,0.00022822,2]
[315050905,1708783832051,-329.52484431,0.00022874,2]
[315050906,1708783832060,-220.56668333,0.00022874,2]
[315050907,1708783832070,-180.58,0.0002289,3]
[315050908,1708783832080,-191.45310092,0.0002289,2]
[315050909,1708783832089,-541.74,0.0002289,3]
[315050910,1708783832099,-179598.49309429,0.000229,2]
[315050911,1708783832112,-1779.66633035,0.000229,2]
[315050912,1708783832127,-3286.18326691,0.000229,2]
[315050913,1708783832143,-346.48303694,0.000229,2]
[315050914,1708783832172,-445.02443717,0.000229,2]
[315050915,1708783832198,-5376.40018263,0.000229,2]
[315050916,1708783832210,-921.389469,0.000229,2]
[315050917,1708783832230,-4647.13793965,0.000229,2]
[315050919,1708783832242,-2983.90038546,0.000229,2]
[315050922,1708783832254,-1238.33836806,0.000229,2]
[315050924,1708783832266,-1130.28342085,0.000229,2]
[315050926,1708783832278,-510.09160601,0.000229,2]
[315050929,1708783832299,-4533.39012725,0.000229,2]
[315050932,1708783832312,-21213.48444107,0.000229,2]
[315051018,1708783837905,-35855.91511326,0.000229,2]
[315051019,1708783837917,-1174.185,0.000229,2]
[315051020,1708783837929,-576.54260746,0.000229,2]
[315051021,1708783838014,-349389.86216393,0.000229,2]
[315051022,1708783838024,-175.34253129,0.00022948,2]
[315051023,1708783838033,-508.54,0.00022974,2]
[315051024,1708783838044,-1000.0,0.00022999,2]
[315051025,1708783838054,-132933.06535725,0.00023,2]
[315051026,1708783838064,-321.24,0.00023048,2]
[315051027,1708783838074,-164.37,0.00023476,2]
[315051028,1708783838084,-538.37,0.00023519,2]
[315051029,1708783838093,-329.52484424,0.00023578,2]
[315051030,1708783838103,-2704.07,0.00023594,2]
[315051031,1708783838113,-499.99,0.00023683,2]
[315051032,1708783838123,-164.37,0.00023868,2]
[315051033,1708783838136,-6527.62801739,0.00023919,2]
[315051034,1708783838145,-153.81127359,0.00023919,2]
[315051035,1708783838155,-858.31766847,0.00023998,2]
[315051036,1708783838165,-63065.82966063,0.00023998,2]
[315051037,1708783838176,-481575.15786128,0.00024,2]
[315051039,1708783838186,-260.47899901,0.0002405,2]
[315051041,1708783838195,-890.33549201,0.0002425,2]
[315051043,1708783838205,-164.37,0.00024259,2]
[315051045,1708783838215,-361.16,0.0002426,3]
[315051047,1708783838225,-6527.62801736,0.00024272,2]
[315051049,1708783838234,-329.52484424,0.00024281,2]
[315051051,1708783838244,-157.45,0.00024384,2]
[315051053,1708783838253,-2333.73,0.00024384,2]
[315051055,1708783838263,-19898.0,0.00024403,2]
[315051057,1708783838272,-2295.0,0.00024403,2]
[315051059,1708783838281,-6628.175,0.00024403,2]
[315051061,1708783838291,-8185.0,0.00024403,2]
[315051063,1708783838302,-2935.0,0.00024403,2]
[315051065,1708783838311,-1040.0,0.00024403,2]
[315051067,1708783838321,-150.0,0.00024462,2]
[315051069,1708783838331,-150.0,0.00024463,2]
[315051071,1708783838340,-150.0,0.00024463,2]
[315051073,1708783838350,-150.0,0.00024463,2]
[315051075,1708783838359,-150.0,0.00024463,2]
[315051077,1708783838369,-150.0,0.00024463,2]
[315051079,1708783838378,-244.198,0.00024463,2]
[315051082,1708783838388,-534.0,0.00024463,2]
[315051084,1708783838398,-955.0,0.00024463,2]
[315051086,1708783838407,-600.0,0.00024463,2]
[315051088,1708783838417,-217.0,0.00024463,2]
[315051090,1708783838427,-1257.0,0.00024463,2]
[315051092,1708783838437,-1231.0,0.00024463,2]
[315051094,1708783838446,-1954.0,0.00024463,2]
[315051096,1708783838456,-430.0,0.00024463,2]
[315051098,1708783838465,-277.0,0.00024463,2]
[315051100,1708783838474,-859.0,0.00024463,2]
[315051102,1708783838483,-1007.0,0.00024463,2]
[315051104,1708783838492,-338.0,0.00024463,2]
[315051106,1708783838502,-322.0,0.00024463,2]
[315051108,1708783838512,-1138.0,0.00024463,2]
[315051110,1708783838521,-2905.0,0.00024463,2]
[315051112,1708783838530,-302.0,0.00024463,2]
[315051114,1708783838539,-1453.0,0.00024463,2]
[315051116,1708783838549,-150.0,0.00024463,2]
[315051138,1708783838732,-390.0,0.00024463,2]
[315051140,1708783838741,-200.0,0.00024488,2]
[315051142,1708783838750,-800.0,0.00024488,2]
[315051144,1708783838759,-500.0,0.00024488,2]
[315051146,1708783838769,-6527.62801736,0.00024625,2]
[315051148,1708783838778,-164.37,0.0002465,2]
[315051150,1708783838787,-250.0,0.00024658,2]
[315051152,1708783838796,-1629.03291425,0.0002468,2]
[315051154,1708783838805,-541.89406802,0.00024681,2]
[315051156,1708783838813,-212.02508098,0.00024684,2]
[315051158,1708783838822,-3663.26341285,0.00024684,2]
[315051160,1708783838832,-423845.35270382,0.00024685,2]
[315051162,1708783838842,-7224.79221008,0.00024685,2]
[315051164,1708783838851,-12530.93462389,0.00024686,2]
[315051166,1708783838860,-17877.20120254,0.00024687,2]
[315051168,1708783838869,-1060.90402488,0.00024687,2]
[315051170,1708783838878,-321003.51451471,0.00024694,2]
[315051172,1708783838887,-8747.75854026,0.00024695,2]
[315051174,1708783838896,-4286.66919789,0.00024697,2]
[315051176,1708783838905,-443.39866079,0.00024698,2]
[315051178,1708783838914,-1569.42740788,0.00024698,2]
[315051180,1708783838923,-4286.66919789,0.00024699,2]
[315051181,1708783838932,-54122.81299693,0.000247,2]
[315051182,1708783838941,-260.47899897,0.00024763,2]
[315051183,1708783838950,-1523.2062,0.00024772,2]
[315051184,1708783838959,-2704.07,0.00024774,2]
[315051185,1708783838969,-651.3988609,0.00024789,2]
[315051186,1708783838977,-5183.71283284,0.00024789,2]
[315051187,1708783838986,-388.97639368,0.00024789,2]
[315051188,1708783838995,-1480.12934962,0.00024789,2]
[315051189,1708783839004,-415.8647126,0.00024789,2]
[315051190,1708783839013,-150.54,0.00024793,2]
[315051191,1708783839022,-211.0,0.00024871,2]
[315051192,1708783839031,-2054.0,0.00024877,2]
[315051193,1708783839040,-191.45310092,0.00024879,2]
[315051195,1708783839049,-325908.45757209,0.00024889,2]
[315051268,1708783841220,-175.34253129,0.0002395,2]
[315051269,1708783841230,-220.74746871,0.00024889,2]
[315051270,1708783841262,-5523.97095543,0.00024889,2]
[315051274,1708783842960,-685.41695749,0.00024684,2]
[315051276,1708783845261,-842.64879468,0.00024684,2]
[315051277,1708783845292,-1219.38180747,0.00024684,2]
[315051278,1708783845301,-150.27647317,0.00024864,2]
[315051279,1708783845310,-3204.95814605,0.00024889,2]
[315051280,1708783845322,-1640.20489026,0.00024889,2]
[315051281,1708783845334,-1052.26171299,0.00024889,2]
[315051282,1708783845349,-1800.0,0.00024889,2]
[315051289,1708783846245,-26875.0,0.00024889,2]
[315051291,1708784025502,427.55,0.00021631,2]
[315051293,1708784322596,320.8501624,0.00023997,10]
[315051296,1708784447244,369.31,0.00022285,2]
[315051300,1708784506177,406.17,0.00020311,2]
[315051301,1708784510472,304.11432162,0.00022428,30]
[315051302,1708784531625,250.0,0.00022267,2]
[315051304,1708784578816,278.47023468,0.000218,2]
[315051306,1708784617013,200.0,0.00022229,2]
[315051307,1708784644348,521.03,0.00021983,2]
[315051310,1708784686759,340.96,0.00022001,2]
[315051311,1708784688946,2000.0,0.00022001,2]
[315051312,1708784710733,750.0,0.000219,2]
[315051313,1708784920876,704.55,0.00021967,2]
[315051314,1708784951715,385.86,0.00020084,2]
[315051315,1708784951926,385.86,0.00022348,2]
[315051316,1708784979386,150.0,0.00022067,2]
[315051317,1708784992714,500.0,0.00022123,2]
[315051323,1708785032091,-521.34765338,0.00022402,2]
[315051324,1708785032100,-155.0,0.00022403,2]
[315051325,1708785032109,-482.25955554,0.00022404,2]
[315051326,1708785032118,-656.71191379,0.00022408,2]
[315051327,1708785032128,-4146.3792483,0.00022416,2]
[315051328,1708785032137,-465.67321954,0.00022424,2]
[315051329,1708785032147,-159.33,0.00022448,2]
[315051330,1708785032156,-515.95579478,0.0002255,2]
[315051331,1708785032166,-150.0,0.00022564,2]
[315051332,1708785032175,-159.33,0.00022565,2]
[315051333,1708785032184,-499.99,0.00022565,2]
[315051334,1708785032193,-1772.63248742,0.00022565,2]
[315051335,1708785032221,-269.82342595,0.00022565,2]
[315051336,1708785032233,-561.94408663,0.00022565,2]
[315051337,1708785032241,-302.78,0.00022565,2]
[315051338,1708785032250,-174.62,0.00022608,2]
[315051339,1708785032259,-159.33,0.00022682,2]
[315051340,1708785032268,-1545.4157,0.000227,2]
[315051341,1708785032277,-423.13021338,0.000227,2]
[315051342,1708785032301,-263.3898,0.000227,2]
[315051343,1708785032313,-836.68618662,0.000227,2]
[315051344,1708785032322,-248.31981389,0.000227,2]
[315051345,1708785032331,-361.16,0.0002279,3]
[315051346,1708785032340,-159.33,0.00022799,2]
[315051347,1708785032349,-17664.48581242,0.000228,2]
[315051348,1708785032360,-521.67666245,0.000228,2]
[315051350,1708785034322,206.0,0.00021503,2]
[315051379,1708785038246,-1224.23013509,0.000228,2]
[315051630,1708785040815,-498.1733841,0.000228,2]
[315051635,1708785040854,-2260.5,0.000228,2]
[315051703,1708785041620,-4098.74760594,0.000228,2]
[315051705,1708785041630,-100000.0,0.000228,2]
[315051706,1708785041639,-2580.44450255,0.000228,2]
[315051707,1708785043170,-296.71386855,0.000228,2]
[315051708,1708785043181,-2171.65658438,0.000228,2]
[315051709,1708785043192,-1023.71159994,0.000228,2]
[315051710,1708785043212,-1318.27107175,0.000228,2]
[315051711,1708785043224,-1245.28478886,0.000228,2]
[315051712,1708785043236,-948.05809748,0.000228,2]
[315051713,1708785043248,-2628.00171414,0.000228,2]
[315051714,1708785043276,-621.41527078,0.000228,2]
[315051715,1708785043308,-681.61500244,0.000228,2]
[315051716,1708785043323,-1041.72948904,0.000228,2]
[315051717,1708785043335,-775.41472922,0.000228,2]
[315051718,1708785043347,-42024.41381451,0.000228,2]
[315051719,1708785043359,-1363.95134591,0.000228,2]
[315051720,1708785043371,-902.36420006,0.000228,2]
[315051721,1708785043383,-1065.265264,0.000228,2]
[315051723,1708785043395,-1648.37425309,0.000228,2]
[315051725,1708785043407,-442.42195542,0.000228,2]
[315051728,1708785046124,-6932.66061507,0.000228,2]
[315051729,1708785046210,-1026.92248804,0.000228,2]
[315051730,1708785046350,-18665.65884477,0.000228,2]
[315051731,1708785046360,-3693.7822,0.000228,2]
[315051732,1708785046370,-1000.0,0.000228,2]
[315051733,1708785046380,-2131.04056048,0.000228,2]
[315051734,1708785046410,-387.65692099,0.000228,2]
[315051735,1708785046424,-635.48200009,0.000228,2]
[315051736,1708785046436,-500.0,0.000228,2]
[315051742,1708785051148,3438.20693484,0.0002,2]
[315051743,1708785133574,2020.90309654,0.00027,14]
[315051744,1708785135768,202.701,0.000225,2]
[315051745,1708785197156,14000.0,0.00022,2]
[315051747,1708785254625,415.3476351,0.00022,2]
[315051748,1708785272624,415.3476351,0.00022,2]
[315051749,1708785293221,415.3476351,0.00022,2]
[315051750,1708785313196,415.3476351,0.00022,2]
[315051751,1708785333205,415.3476351,0.00022,2]
[315051752,1708785351185,13637.21232891,0.00022,2]
[315051753,1708785351223,415.3476351,0.00022,2]
[315051754,1708785369199,415.3476351,0.00022,2]
[315051755,1708785379004,1303.88,0.0002249,2]
[315051756,1708785382658,20000.0,0.00021,2]
[315051757,1708785387199,415.3476351,0.00022,2]
[315051758,1708785401388,20000.0,0.00022,2]
[315051759,1708785403199,390.37059753,0.00022,2]
[315051760,1708785411964,263.42,0.00022454,2]
[315051761,1708785452403,250.0,0.00022493,2]
[315051762,1708785459537,383.98,0.00020566,2]
[315051763,1708785498501,436.36,0.00022481,2]
[315051764,1708785516915,152.68,0.00022471,2]
[315051765,1708785563147,750.0,0.00022452,2]
[315051766,1708785582797,2000.0,0.00022395,2]
[315051771,1708785637357,169.11,0.00022468,2]
[315051772,1708785645590,172.41,0.0002248,2]
[315051773,1708785646362,200.0,0.0002248,2]
[315051774,1708785657070,162.22852883,0.00022465,2]
[315051775,1708785664889,250.3071,0.0002241,2]
[315051776,1708785692990,200.0,0.00022452,2]
[315051777,1708785701642,549.6929,0.00022476,2]
[315051778,1708785701666,1000.0,0.00022476,2]